Cogmind - Beta 10.2 @@@ ROGUE MODE // 2020.10.31 @ 16:20:28 // Halloween2020/ForbiddenLore Player: Pimski Result: Self-destructed Performance ------------- Evolutions (5) 2500 Regions Visited (20) 4000 Robots Destroyed (27) 135 Value Destroyed (391) 391 Prototype IDs (40) 800 Alien Tech Used (0) 0 Bonus (772) 772 TOTAL SCORE: 8598 Bonus ------- Follower Combat Kills 172 Aligned with FarCom 300 Met Data Miner 300 Cogmind --------- Core Integrity 1000/1000 Matter 254/300 Energy 100/100 System Corruption 0% Temperature Cool (0) Movement Core (50) Location -5/Factory Parts ------- > --- POWER (1) -------- (None) > --- PROPULSION (7) --- (None) > --- UTILITY (7) ------ Advanced Visual Processing Unit Enhanced Optical Array Improved Signal Interpreter Advanced Signal Interpreter > --- WEAPON (2) ------- (None) > --- INVENTORY (4) ---- Molecular Deconstructor Katana Peak State ------------ > --- POWER ------------ (None) > --- PROPULSION ------- Armored Treads Medium Treads Medium Treads Medium Treads Improved Medium Treads Cooled VTOL Module > --- UTILITY ---------- Advanced Visual Processing Unit Enhanced Optical Array Improved Signal Interpreter Advanced Signal Interpreter > --- WEAPON ----------- Mini Grenade Launcher Katana > --- INVENTORY -------- Supersonic Drone Bay Molecular Deconstructor [Rating: 44] Favorites ----------- Power Light Ion Engine Engine Light Ion Engine Propulsion Medium Treads Treads Medium Treads Leg Aluminum Leg Flight Unit Cooled VTOL Module Utility Improved Signal Interpreter Device Supersonic Drone Bay Storage Small Storage Unit Processor Improved Signal Interpreter Protection Light Armor Plating Weapon Katana Energy Gun EM Pulse Gun Ballistic Gun Light Assault Rifle Launcher Mini Grenade Launcher Special Weapon Molecular Deconstructor Slashing Weapon Katana Special Melee Weapon Improved Datajack Build | -11 -10 -10 -9 -9 -9 -8 -8 -7 -7 -7 -7 -7 -7 -6 -6 -6 -6 -6 -6 -5 ------- Run | Scr Mat Min Mat Min Exi Min Mat Fac Was Fac Low Low Dat Pro Fac Was Fac Ext Cet Fac Slots Evolved 10 | . . . 2 . . . 2 2 . . . . . . 2 . . . . 2 Power . | . . . . . . . . . . . . . . . . . . . . . Propulsion 5 | . . . 1 . . . 1 1 . . . . . . 1 . . . . 1 Utility 5 | . . . 1 . . . 1 1 . . . . . . 1 . . . . 1 Weapon . | . . . . . . . . . . . . . . . . . . . . . Parts Attached 37 | . 1 . 2 9 1 . 3 9 . . 1 . . . . 1 1 3 6 . Power 3 | . . . . 2 . . . . . . . . . . . . . . 1 . Engine 3 | . . . . 2 . . . . . . . . . . . . . . 1 . Core . | . . . . . . . . . . . . . . . . . . . . . Reactor . | . . . . . . . . . . . . . . . . . . . . . Propulsion 14 | . . . . 2 . . . 5 . . . . . . . 1 1 3 2 . Treads 12 | . . . . 2 . . . 5 . . . . . . . 1 . 3 1 . Leg . | . . . . . . . . . . . . . . . . . . . . . Wheel . | . . . . . . . . . . . . . . . . . . . . . Hover . | . . . . . . . . . . . . . . . . . . . . . Flight 2 | . . . . . . . . . . . . . . . . . 1 . 1 . Utility 8 | . 1 . 2 . 1 . 1 2 . . . . . . . . . . 1 . Device 2 | . . . . . 1 . . . . . . . . . . . . . 1 . Storage . | . . . . . . . . . . . . . . . . . . . . . Processor 5 | . . . 2 . . . 1 2 . . . . . . . . . . . . Hackware . | . . . . . . . . . . . . . . . . . . . . . Protection 1 | . 1 . . . . . . . . . . . . . . . . . . . Artifact . | . . . . . . . . . . . . . . . . . . . . . Weapon 12 | . . . . 5 . . 2 2 . . 1 . . . . . . . 2 . Energy Gun . | . . . . . . . . . . . . . . . . . . . . . Energy Cannon . | . . . . . . . . . . . . . . . . . . . . . Ballistic Gun 1 | . . . . 1 . . . . . . . . . . . . . . . . Ballistic Cannon . | . . . . . . . . . . . . . . . . . . . . . Launcher 7 | . . . . 4 . . . 1 . . 1 . . . . . . . 1 . Special Weapon 1 | . . . . . . . . . . . . . . . . . . . 1 . Impact Weapon . | . . . . . . . . . . . . . . . . . . . . . Slashing Weapon 2 | . . . . . . . 1 1 . . . . . . . . . . . . Piercing Weapon . | . . . . . . . . . . . . . . . . . . . . . Special Melee Weapon 1 | . . . . . . . 1 . . . . . . . . . . . . . Unidentified Prototypes 3 | . . . . . 1 . . . . . . . . . . . 1 . 1 . Parts Lost 15 | . . . 1 2 . . 1 1 . . . . . . . . . 5 5 . Power 1 | . . . . . . . . . . . . . . . . . . . 1 . Propulsion 10 | . . . . 2 . . 1 . . . . . . . . . . 5 2 . Utility 2 | . . . 1 . . . . . . . . . . . . . . . 1 . Weapon 2 | . . . . . . . . 1 . . . . . . . . . . 1 . Highest Loss Streak 5 | . . . 1 2 . . 1 1 . . . . . . . . . 4 5 . Average Slot Usage (%) 66 | . 42 42 33 52 50 44 48 72 76 76 84 84 84 84 73 73 73 74 47 . Engine 2 | . . . . 9 11 11 . . . . . . . . . . . . . . Treads 28 | . . . . 18 22 22 16 36 38 38 38 38 38 38 33 33 33 34 2 . Leg 2 | . 28 28 22 1 . . . . . . . . . . . . . . . . Processor 23 | . . . 4 22 17 11 16 24 30 30 30 30 30 30 26 26 26 26 26 . Launcher 2 | . . . . . . . . . . . 7 7 7 7 6 6 6 6 4 . Slashing Weapon 4 | . . . . . . . 8 6 7 7 7 7 7 7 6 6 6 6 4 . Naked Turns . | . . . . . . . . . . . . . . . . . . . . . Heaviest Build 12 | 12 3 3 3 3 3 3 3 3 2 2 3 3 3 3 3 3 3 3 4 . Greatest Support 20 | 20 3 3 3 3 3 3 3 3 3 3 3 3 3 3 3 3 3 3 7 . Greatest Overweight (x) . | . . . . . . . . . . . . . . . . . . . . . Average Overweight (x) . | . . . . . . . . . . . . . . . . . . . . . Largest Inventory Capacity 6 | . 6 4 4 4 4 4 4 4 4 4 4 4 4 4 4 4 4 4 4 . Average Capacity 4 | . 4 4 4 4 4 4 4 4 4 4 4 4 4 4 4 4 4 4 4 . Most Carried 6 | . 6 4 4 4 4 4 4 4 4 4 4 3 3 3 3 3 4 4 4 . Average Carried 3 | . 4 4 4 3 3 4 4 4 4 4 3 3 3 3 3 3 3 4 3 . Final Capacity 6 | 6 4 4 4 4 4 4 4 4 4 4 4 4 4 4 4 4 4 4 4 4 Final Carried 6 | 6 4 4 4 4 4 4 4 4 4 4 3 3 3 3 3 3 4 4 3 3 Class Distribution -------------------- 97% | Mutant Dominant Class ---------------- Mutant | -10/Materials Mutant | -10/Mines Mutant | -9/Materials Mutant | -9/Mines Mutant | -9/Exiles Mutant | -8/Mines Mutant | -8/Materials Mutant | -7/Factory Mutant | -7/Waste Mutant | -7/Factory Mutant | -7/Lower Caves Mutant | -7/Lower Caves Mutant | -7/Data Miner Mutant | -6/Proximity Caves Mutant | -6/Factory Mutant | -6/Waste Mutant | -6/Factory Mutant | -6/Extension Sprinter | -6/Cetus Sprinter | -5/Factory Resources | -11 -10 -10 -9 -9 -9 -8 -8 -7 -7 -7 -7 -7 -7 -6 -6 -6 -6 -6 -6 -5 ----------- Run | Scr Mat Min Mat Min Exi Min Mat Fac Was Fac Low Low Dat Pro Fac Was Fac Ext Cet Fac Matter Collected 752 | 200 . . . 216 10 . . 99 41 . . . . 22 . . 4 154 6 . Remotely . | . . . . . . . . . . . . . . . . . . . . . Salvage Created 488 | . . 34 . 84 . . . 176 . . . . . . . . 4 160 30 . Parts 34 | . . 5 . 7 . . . 15 . . . . . . . . 1 3 3 . Haulers Intercepted . | . . . . . . . . . . . . . . . . . . . . . Recyclers Shooed 1 | . . . . . . . . 1 . . . . . . . . . . . . Parts Field Recycled . | . . . . . . . . . . . . . . . . . . . . . Retrieved Matter . | . . . . . . . . . . . . . . . . . . . . . Parts Self-Destructed 2 | . . . . . . . . . . . . . . 2 . . . . . . Prevented 1 | . . . . . . . . . . . . 1 . . . . . . . . Kills | -11 -10 -10 -9 -9 -9 -8 -8 -7 -7 -7 -7 -7 -7 -6 -6 -6 -6 -6 -6 -5 ------- Run | Scr Mat Min Mat Min Exi Min Mat Fac Was Fac Low Low Dat Pro Fac Was Fac Ext Cet Fac Combat Hostiles Destroyed 19 | . . 1 . 11 . . . 3 . . . 1 . . . . . 3 . . Melee 3 | . . 1 . 2 . . . . . . . . . . . . . . . . Guns 1 | . . . . 1 . . . . . . . . . . . . . . . . AOE 15 | . . . . 8 . . . 3 . . . 1 . . . . . 3 . . Classes Destroyed 9 | . . 2 . 1 . . . 3 . . . 1 . . . . . 2 . . Worker 1 | . . . . . . . . 1 . . . . . . . . . . . . Builder 3 | . . 1 . . . . . 2 . . . . . . . . . . . . Recycler 1 | . . . . . . . . 1 . . . . . . . . . . . . Watcher 3 | . . . . . . . . 1 . . . . . . . . 1 . 1 . Swarmer 7 | . . 1 . 3 . . . 3 . . . . . . . . . . . . Grunt 2 | . . . . . . . . . . . . . . . . . . 2 . . Brawler 1 | . . . . . . . . . . . . . . . . . . 1 . . Thief 1 | . . . . . . . . . . . . 1 . . . . . . . . Assembled 8 | . . . . 8 . . . . . . . . . . . . . . . . Best Kill Streak 6 | . . 1 . 6 . . . 5 . . . 1 . . . . 1 3 1 . Combat Bots Only 6 | . . 1 . 6 . . . 3 . . . 1 . . . . . 3 . . Max Kills in Single Turn 2 | . . 1 . 2 . . . 2 . . . 1 . . . . 1 1 1 . Gunslinging . | . . . . . . . . . . . . . . . . . . . . . Exploded 2 | . . . . 2 . . . 1 . . . 1 . . . . . 1 . . Melee 1 | . . 1 . 1 . . . . . . . . . . . . . . . . Uniques/NPCs Destroyed . | . . . . . . . . . . . . . . . . . . . . . Combat | -11 -10 -10 -9 -9 -9 -8 -8 -7 -7 -7 -7 -7 -7 -6 -6 -6 -6 -6 -6 -5 -------- Run | Scr Mat Min Mat Min Exi Min Mat Fac Was Fac Low Low Dat Pro Fac Was Fac Ext Cet Fac Damage Taken 3451 | . 19 270 157 380 . . 174 373 . . 252 159 . 40 . . . 586 1041 . Core 1024 | . 19 86 72 133 . . 56 47 . . 17 21 . . . . . 44 529 . Absorbed by Shields 129 | . . . . . . . . . . . . . . . . . . 129 . . Core Remaining (%) 69 | 100 . 58 . . . 48 89 . . . . . . 87 . . . . 32 . Volleys Fired 30 | . . . . 12 . . . 4 . . . 8 . . . . . 5 1 . Largest 1 | . . . . 1 . . . 1 . . . 1 . . . . . 1 1 . Hottest 33 | . . . . 33 . . . 30 . . . 30 . . . . . 30 30 . Shots Fired 30 | . . . . 12 . . . 4 . . . 8 . . . . . 5 1 . Gun 1 | . . . . 1 . . . . . . . . . . . . . . . . Cannon . | . . . . . . . . . . . . . . . . . . . . . Launcher 29 | . . . . 11 . . . 4 . . . 8 . . . . . 5 1 . Special . | . . . . . . . . . . . . . . . . . . . . . Kinetic 1 | . . . . 1 . . . . . . . . . . . . . . . . Thermal . | . . . . . . . . . . . . . . . . . . . . . Explosive 29 | . . . . 11 . . . 4 . . . 8 . . . . . 5 1 . Electromagnetic . | . . . . . . . . . . . . . . . . . . . . . Robot Hit Streak 2 | . . . . 1 . . . 2 . . . 1 . . . . . 1 2 . Robot Miss Streak 2 | . . . . 2 . . . . . . . 2 . . . . . 1 . . Penetration Max . | . . . . . . . . . . . . . . . . . . . . . Secondary Targets . | . . . . . . . . . . . . . . . . . . . . . Shots Hit Robots 19 | . . . . 4 . . . 6 . . . 2 . . . . . 6 1 . Core Hits 46 | . 2 6 . 16 . 1 . 10 . . . 2 . . . . . 5 4 . Critical Hits . | . . . . . . . . . . . . . . . . . . . . . Critical Kills . | . . . . . . . . . . . . . . . . . . . . . Critical Parts Destroyed . | . . . . . . . . . . . . . . . . . . . . . Melee Attacks 23 | . . . . . . . . 10 . 5 3 . . . . . . 5 . . Impact . | . . . . . . . . . . . . . . . . . . . . . Slashing 23 | . . . . . . . . 10 . 5 3 . . . . . . 5 . . Piercing . | . . . . . . . . . . . . . . . . . . . . . Sneak Attacks 4 | . . . . . . . . 3 . . . . . . . . . 1 . . Combat Hostiles . | . . . . . . . . . . . . . . . . . . . . . Follow-up Attacks . | . . . . . . . . . . . . . . . . . . . . . Damage Inflicted 1927 | . 3 46 . 388 . 3 . 694 . . . 249 . . . . 2 412 130 . Guns 10 | . . . . 10 . . . . . . . . . . . . . . . . Cannons . | . . . . . . . . . . . . . . . . . . . . . Explosions 1319 | . . . . 357 . . . 362 . . . 249 . . . . . 227 124 . Melee 515 | . . . . . . . . 330 . . . . . . . . . 185 . . Ramming 83 | . 3 46 . 21 . 3 . 2 . . . . . . . . 2 . 6 . Kinetic 10 | . . . . 10 . . . . . . . . . . . . . . . . Thermal . | . . . . . . . . . . . . . . . . . . . . . Explosive 1319 | . . . . 357 . . . 362 . . . 249 . . . . . 227 124 . Electromagnetic . | . . . . . . . . . . . . . . . . . . . . . Impact . | . . . . . . . . . . . . . . . . . . . . . Slashing 515 | . . . . . . . . 330 . . . . . . . . . 185 . . Piercing . | . . . . . . . . . . . . . . . . . . . . . Highest Corruption 1 | . . . . . . . . . . . 1 1 1 1 . . . . . . Average Corruption 1 | . . . . . . . . . . . 1 1 1 1 . . . . . . Corruption Purged . | . . . . . . . . . . . . . . . . . . . . . Effects 1 | . . . . . . . . . . . . 1 . . . . . . . . Message Errors 1 | . . . . . . . . . . . . 1 . . . . . . . . Overload Shots . | . . . . . . . . . . . . . . . . . . . . . Overflow Damage 216 | . . . . 2 . . . 108 . . . 53 . . . . . 46 7 . Projectiles . | . . . . . . . . . . . . . . . . . . . . . Explosions 65 | . . . . 2 . . . 3 . . . 53 . . . . . . 7 . Melee 151 | . . . . . . . . 105 . . . . . . . . . 46 . . Knockbacks . | . . . . . . . . . . . . . . . . . . . . . Impact . | . . . . . . . . . . . . . . . . . . . . . Kinetic . | . . . . . . . . . . . . . . . . . . . . . Secondary . | . . . . . . . . . . . . . . . . . . . . . Self-Inflicted Damage 276 | . 1 21 . 128 . . . . . . . 66 . . . . . 36 24 . Shots 8 | . . . . 4 . . . . . . . 2 . . . . . 1 1 . Rammed 21 | . 2 10 . 4 . 1 1 2 . . . . . . . . . . 1 . Targets Rammed 22 | . 2 10 . 4 . 1 1 2 . . . . . . . . 1 . 1 . Kicked . | . . . . . . . . . . . . . . . . . . . . . Crushed 1 | . . . . . . . . . . . . . . . . . 1 . . . Highest Temperature 5 | . . . . . . . . . . . . . . . . . . . 5 . Average Temperature 5 | . . . . . . . . . . . . . . . . . . . 5 . Received Heat Transfer 521 | . 9 36 30 . . . 45 27 . . 57 54 . 9 . . . 65 189 . Siege Activations . | . . . . . . . . . . . . . . . . . . . . . Robots Corrupted . | . . . . . . . . . . . . . . . . . . . . . Combat Hostiles . | . . . . . . . . . . . . . . . . . . . . . Parts Fried . | . . . . . . . . . . . . . . . . . . . . . Impact Corruptions . | . . . . . . . . . . . . . . . . . . . . . Robots Melted . | . . . . . . . . . . . . . . . . . . . . . Combat Hostiles . | . . . . . . . . . . . . . . . . . . . . . Parts Melted . | . . . . . . . . . . . . . . . . . . . . . Heat Transferred . | . . . . . . . . . . . . . . . . . . . . . Parts Sabotaged . | . . . . . . . . . . . . . . . . . . . . . Parts Stolen . | . . . . . . . . . . . . . . . . . . . . . Parts Stripped . | . . . . . . . . . . . . . . . . . . . . . Power Chain Reactions . | . . . . . . . . . . . . . . . . . . . . . Missiles Intercepted . | . . . . . . . . . . . . . . . . . . . . . Alert | -11 -10 -10 -9 -9 -9 -8 -8 -7 -7 -7 -7 -7 -7 -6 -6 -6 -6 -6 -6 -5 ------- Run | Scr Mat Min Mat Min Exi Min Mat Fac Was Fac Low Low Dat Pro Fac Was Fac Ext Cet Fac Peak Influence 419 | . 95 173 93 131 . . 130 419 146 185 . . . . 128 59 83 251 117 . Initial 146 | . . 36 66 36 . . . 58 146 102 . . . . 60 44 27 40 112 46 Average 119 | . 26 69 77 108 . . 31 200 146 157 . . . . 76 48 60 163 106 . Maximum Alert Level 2 | . . . . . . . . 2 . . . . . . . . . 1 . . Low Security (%) 85 | . 100 100 100 100 . 100 100 53 100 100 . . . . 100 100 100 53 100 . Level 1 13 | . . . . . . . . 44 . . . . . . . . . 46 . . Level 2 . | . . . . . . . . 2 . . . . . . . . . . . . Level 3 . | . . . . . . . . . . . . . . . . . . . . . Level 4 . | . . . . . . . . . . . . . . . . . . . . . Level 5 . | . . . . . . . . . . . . . . . . . . . . . High Security . | . . . . . . . . . . . . . . . . . . . . . Max Security . | . . . . . . . . . . . . . . . . . . . . . Squads Dispatched 12 | . 2 . . . . . 1 5 . . . . . . 1 . 2 1 . . Investigation 6 | . . . . . . . . 2 . . . . . . 1 . 2 1 . . Extermination . | . . . . . . . . . . . . . . . . . . . . . Reinforcement 6 | . 2 . . . . . 1 3 . . . . . . . . . . . . Assault . | . . . . . . . . . . . . . . . . . . . . . Garrison . | . . . . . . . . . . . . . . . . . . . . . Intercept . | . . . . . . . . . . . . . . . . . . . . . Construction Impeded 1 | . . . . . . . . 1 . . . . . . . . . . . . Haulers Reinforced . | . . . . . . . . . . . . . . . . . . . . . Stealth | -11 -10 -10 -9 -9 -9 -8 -8 -7 -7 -7 -7 -7 -7 -6 -6 -6 -6 -6 -6 -5 --------- Run | Scr Mat Min Mat Min Exi Min Mat Fac Was Fac Low Low Dat Pro Fac Was Fac Ext Cet Fac Distress Signals 2 | . . . 1 . . . . . . . . . . . . . . . 1 . Communications Jammed . | . . . . . . . . . . . . . . . . . . . . . Distress Signals . | . . . . . . . . . . . . . . . . . . . . . Times Spotted 142 | . 11 11 9 30 . . 16 13 . 2 8 8 . 5 1 2 1 15 10 . Peak Tracking Total 15 | . 7 8 10 15 . . 15 5 . 1 6 7 . 4 . 3 1 10 10 . Tactical Retreats 14 | . 1 2 . 3 . . 1 2 . . 1 2 . 1 . . . 1 . . Traps | -11 -10 -10 -9 -9 -9 -8 -8 -7 -7 -7 -7 -7 -7 -6 -6 -6 -6 -6 -6 -5 ------- Run | Scr Mat Min Mat Min Exi Min Mat Fac Was Fac Low Low Dat Pro Fac Was Fac Ext Cet Fac Traps Triggered 5 | . . . . . . . . 2 . . . . . . 1 . 1 1 . . Indirectly . | . . . . . . . . . . . . . . . . . . . . . Trap Hack Attempts . | . . . . . . . . . . . . . . . . . . . . . Triggered . | . . . . . . . . . . . . . . . . . . . . . Disarmed . | . . . . . . . . . . . . . . . . . . . . . Reprogrammed . | . . . . . . . . . . . . . . . . . . . . . Reused . | . . . . . . . . . . . . . . . . . . . . . Traps Extracted . | . . . . . . . . . . . . . . . . . . . . . Installed . | . . . . . . . . . . . . . . . . . . . . . Triggered 1 | . . . . . . . . . . . . 1 . . . . . . . . Machines | -11 -10 -10 -9 -9 -9 -8 -8 -7 -7 -7 -7 -7 -7 -6 -6 -6 -6 -6 -6 -5 ---------- Run | Scr Mat Min Mat Min Exi Min Mat Fac Was Fac Low Low Dat Pro Fac Was Fac Ext Cet Fac Machines Disabled 1 | . . . . . . . . 1 . . . . . . . . . . . . Max in Single Turn 1 | . . . . . . . . 1 . . . . . . . . . . . . Machines Sabotaged . | . . . . . . . . . . . . . . . . . . . . . Garrisons Compromised . | . . . . . . . . . . . . . . . . . . . . . Overloaded Fab Kills . | . . . . . . . . . . . . . . . . . . . . . Fab Network Shutdowns . | . . . . . . . . . . . . . . . . . . . . . Hacking | -11 -10 -10 -9 -9 -9 -8 -8 -7 -7 -7 -7 -7 -7 -6 -6 -6 -6 -6 -6 -5 --------- Run | Scr Mat Min Mat Min Exi Min Mat Fac Was Fac Low Low Dat Pro Fac Was Fac Ext Cet Fac Machines Accessed 27 | . 1 . 1 1 2 . 1 6 . 5 . . 4 . 1 . 2 3 . . Terminals 17 | . 1 . 1 . . . 1 5 . 4 . . . . 1 . 1 3 . . Fabricators 1 | . . . . . . . . 1 . . . . . . . . . . . . Repair Stations . | . . . . . . . . . . . . . . . . . . . . . Recycling Units 1 | . . . . . . . . . . . . . . . . . 1 . . . Scanalyzers . | . . . . . . . . . . . . . . . . . . . . . Garrison Access 1 | . . . . . . . . . . 1 . . . . . . . . . . Total Hacks 85 | . 2 . 4 1 2 . 3 16 . 10 . . 30 . 4 . 3 10 . . Successful 50 | . 1 . 2 1 2 . 1 3 . 4 . . 30 . . . 2 4 . . Failed 35 | . 1 . 2 . . . 2 13 . 6 . . . . 4 . 1 6 . . Catastrophic 4 | . . . . . . . . 3 . 1 . . . . . . . . . . Database Lockouts . | . . . . . . . . . . . . . . . . . . . . . Manual 40 | . 2 . . . 1 . 3 9 . 10 1 . . . 4 . 2 8 . . Terminals 47 | . 2 . 4 . . . 3 15 . 8 . . . . 4 . 1 10 . . Fabricators 1 | . . . . . . . . 1 . . . . . . . . . . . . Repair Stations . | . . . . . . . . . . . . . . . . . . . . . Recycling Units 2 | . . . . . . . . . . . . . . . . . 2 . . . Scanalyzers . | . . . . . . . . . . . . . . . . . . . . . Garrison Access 2 | . . . . . . . . . . 2 . . . . . . . . . . Terminal Hacks 40 | . . . 2 1 2 . . 1 . 1 . . 30 . . . 1 2 . . Record 12 | . . . . . 1 . . . . . . . 11 . . . . . . . Part Schematic 9 | . . . . . . . . . . . . . 9 . . . . . . . Robot Schematic 7 | . . . . . . . . . . . . . 7 . . . . . . . Prototype ID Bank 4 | . . . 1 . . . . . . . . . 3 . . . . . . . Open Door 2 | . . . . 1 . . . . . . . . . . . . 1 . . . Branch Access Points 2 | . . . 1 . . . . . . 1 . . . . . . . . . . Locate Traps 2 | . . . . . . . . 1 . . . . . . . . . 1 . . Zone Layout 1 | . . . . . . . . . . . . . . . . . . 1 . . EX-Prototype ID Bank 1 | . . . . . 1 . . . . . . . . . . . . . . . Fabricator Hacks . | . . . . . . . . . . . . . . . . . . . . . Repair Station Hacks . | . . . . . . . . . . . . . . . . . . . . . Recycling Unit Hacks . | . . . . . . . . . . . . . . . . . . . . . Scanalyzer . | . . . . . . . . . . . . . . . . . . . . . Garrison Access Hacks . | . . . . . . . . . . . . . . . . . . . . . Unauthorized Hacks 10 | . 1 . . . . . 1 2 . 3 . . . . . . 1 2 . . Terminals 7 | . 1 . . . . . 1 1 . 2 . . . . . . . 2 . . Assimilate 2 | . . . . . . . 1 . . 1 . . . . . . . . . . Botnet 3 | . 1 . . . . . . 1 . 1 . . . . . . . . . . Disrupt 2 | . . . . . . . . . . . . . . . . . . 2 . . Fabricators 1 | . . . . . . . . 1 . . . . . . . . . . . . Haulers 1 | . . . . . . . . 1 . . . . . . . . . . . . Repair Stations . | . . . . . . . . . . . . . . . . . . . . . Recycling Units 1 | . . . . . . . . . . . . . . . . . 1 . . . Tunnel 1 | . . . . . . . . . . . . . . . . . 1 . . . Scanalyzers . | . . . . . . . . . . . . . . . . . . . . . Garrison Access 1 | . . . . . . . . . . 1 . . . . . . . . . . Watchers 1 | . . . . . . . . . . 1 . . . . . . . . . . Data Cores Recovered . | . . . . . . . . . . . . . . . . . . . . . Used . | . . . . . . . . . . . . . . . . . . . . . Hacking Detections 16 | . 1 . 1 . . . . 5 . 4 . . . . 1 . 1 3 . . Full Trace Events 4 | . . . . . . . . 2 . . . . . . 1 . . 1 . . Feedback Events . | . . . . . . . . . . . . . . . . . . . . . Feedback Blocked . | . . . . . . . . . . . . . . . . . . . . . Robot Schematics Acquired 7 | . . . . . . . . . . . . . 7 . . . . . . . Robots Built . | . . . . . . . . . . . . . . . . . . . . . Matter . | . . . . . . . . . . . . . . . . . . . . . Time . | . . . . . . . . . . . . . . . . . . . . . Total Robot Build Rating . | . . . . . . . . . . . . . . . . . . . . . Part Schematics Acquired 9 | . . . . . . . . . . . . . 9 . . . . . . . Parts Built . | . . . . . . . . . . . . . . . . . . . . . Matter . | . . . . . . . . . . . . . . . . . . . . . Time . | . . . . . . . . . . . . . . . . . . . . . Total Part Build Rating . | . . . . . . . . . . . . . . . . . . . . . Parts Repaired . | . . . . . . . . . . . . . . . . . . . . . Time . | . . . . . . . . . . . . . . . . . . . . . Parts Recycled . | . . . . . . . . . . . . . . . . . . . . . Recycled Matter . | . . . . . . . . . . . . . . . . . . . . . Retrieved Matter . | . . . . . . . . . . . . . . . . . . . . . Retrieved Components . | . . . . . . . . . . . . . . . . . . . . . Parts Scanalyzed . | . . . . . . . . . . . . . . . . . . . . . Part Schematics Acquired . | . . . . . . . . . . . . . . . . . . . . . Parts Damaged . | . . . . . . . . . . . . . . . . . . . . . Bothacking | -11 -10 -10 -9 -9 -9 -8 -8 -7 -7 -7 -7 -7 -7 -6 -6 -6 -6 -6 -6 -5 ------------ Run | Scr Mat Min Mat Min Exi Min Mat Fac Was Fac Low Low Dat Pro Fac Was Fac Ext Cet Fac Used RIF Installer . | . . . . . . . . . . . . . . . . . . . . . Robots Hacked . | . . . . . . . . . . . . . . . . . . . . . Non-combat . | . . . . . . . . . . . . . . . . . . . . . Combat . | . . . . . . . . . . . . . . . . . . . . . Robot Hacks Applied . | . . . . . . . . . . . . . . . . . . . . . Relay Couplers Released . | . . . . . . . . . . . . . . . . . . . . . Robots Rewired . | . . . . . . . . . . . . . . . . . . . . . Allies Hacked . | . . . . . . . . . . . . . . . . . . . . . Hacks Repelled . | . . . . . . . . . . . . . . . . . . . . . Allies | -11 -10 -10 -9 -9 -9 -8 -8 -7 -7 -7 -7 -7 -7 -6 -6 -6 -6 -6 -6 -5 -------- Run | Scr Mat Min Mat Min Exi Min Mat Fac Was Fac Low Low Dat Pro Fac Was Fac Ext Cet Fac Total Allies 9 | . . 2 . . . . 1 . . 1 . . . 1 . 1 . 3 . . Largest Group 3 | . . 2 . . . . 1 . . 1 1 . . 1 1 2 . 3 . . Highest-Rated Group 201 | . . 50 . . . . 10 . . 26 26 . . 94 94 125 . 201 . . Highest-Rated Ally 156 | . . 31 . . . . 10 . . 26 26 . . 94 94 94 . 156 . . Total Orders 1 | . . . . . . . . . . . . . . . . . . . 1 . EXPLORE 1 | . . . . . . . . . . . . . . . . . . . 1 . Ally Attacks 32 | . . 7 . . . . . . . . . . . 3 2 10 . 10 . . Total Damage 683 | . . 61 . . . . . . . . . . . 53 45 221 . 303 . . Kills 6 | . . 2 . . . . . . . . . . . 1 1 . . 2 . . Allies Corrupted . | . . . . . . . . . . . . . . . . . . . . . Allies Melted . | . . . . . . . . . . . . . . . . . . . . . Intel | -11 -10 -10 -9 -9 -9 -8 -8 -7 -7 -7 -7 -7 -7 -6 -6 -6 -6 -6 -6 -5 ------- Run | Scr Mat Min Mat Min Exi Min Mat Fac Was Fac Low Low Dat Pro Fac Was Fac Ext Cet Fac Robot Analysis Total . | . . . . . . . . . . . . . . . . . . . . . Derelict Logs Recovered 3 | . . . . 2 . . . . . . . . . 1 . . . . . . Drone Launches 1 | . . . . . . . . . . . . . . . . . . . 1 . Drone Recoveries . | . . . . . . . . . . . . . . . . . . . . . Exploration | -11 -10 -10 -9 -9 -9 -8 -8 -7 -7 -7 -7 -7 -7 -6 -6 -6 -6 -6 -6 -5 ------------- Run | Scr Mat Min Mat Min Exi Min Mat Fac Was Fac Low Low Dat Pro Fac Was Fac Ext Cet Fac Turns Passed 2482 | . 71 56 43 323 159 83 97 338 36 234 131 140 38 242 46 32 123 202 88 . Spaces Moved 4072 | 1 128 91 79 556 257 155 176 564 71 433 241 247 77 226 74 59 238 281 118 . Core 3976 | . 128 91 79 556 257 155 176 564 71 433 241 247 77 226 74 59 238 281 23 . Treads . | . . . . . . . . . . . . . . . . . . . . . Legs 1 | 1 . . . . . . . . . . . . . . . . . . . . Wheels . | . . . . . . . . . . . . . . . . . . . . . Hover . | . . . . . . . . . . . . . . . . . . . . . Flight 95 | . . . . . . . . . . . . . . . . . . . 95 . Fastest Speed 32 | 120 50 50 50 50 50 50 50 50 50 50 50 50 50 50 50 50 50 50 32 . Average Speed 49 | 120 50 50 50 50 50 50 50 50 50 50 50 50 50 50 50 50 50 50 35 . Slowest Speed 120 | 120 50 50 50 50 50 50 50 50 50 50 50 50 50 50 50 50 50 50 50 . Overloaded Moves 88 | . . . . . . . . . . . . . . . . . . . 88 . Propulsion Burnouts . | . . . . . . . . . . . . . . . . . . . . . Robots Hopped 5 | . . . . . . . . . . . . . . . . . . . 5 . Cave-ins Triggered . | . . . . . . . . . . . . . . . . . . . . . Exploration Rate (%) 43 | 2 32 30 14 74 62 46 31 33 77 17 44 63 74 52 3 74 10 58 71 . Regions Visited 20 Branch Regions 10 Pre-discovered Areas 4 | . . . . 1 1 . . . . . . . 1 . . . 1 . . . Known Exits Taken 13 | . . . 1 1 1 1 1 . . 1 1 1 1 1 . . 1 1 1 . Unknown Exits Taken 3 | 1 1 1 . . . . . . . . . . . . . . . . . . Scrap Searched 4 | . . 1 . 1 . 1 . . . . . . . 1 . . . . . . Spaces Dug 37 | . . . . 14 . . . 3 . 5 3 11 . . . . . 1 . . Terrain Destroyed 257 | . . . . 119 . . . 14 . 5 3 73 . . . . . 32 11 . Melee 10 | . . . . . . . . 1 . 5 3 . . . . . . 1 . . Projectile . | . . . . . . . . . . . . . . . . . . . . . AOE 247 | . . . . 119 . . . 13 . . . 73 . . . . . 31 11 . Terrain Rammed . | . . . . . . . . . . . . . . . . . . . . . Walls Destroyed . | . . . . . . . . . . . . . . . . . . . . . Machines Disabled . | . . . . . . . . . . . . . . . . . . . . . Actions | -11 -10 -10 -9 -9 -9 -8 -8 -7 -7 -7 -7 -7 -7 -6 -6 -6 -6 -6 -6 -5 --------- Run | Scr Mat Min Mat Min Exi Min Mat Fac Was Fac Low Low Dat Pro Fac Was Fac Ext Cet Fac Total 4447 | . 136 100 80 592 288 159 184 596 70 442 246 254 76 354 83 60 240 328 159 . Wait 236 | . . . . 1 27 4 2 6 . 5 . . . 129 9 . . 19 34 . Move 4046 | . 127 90 78 555 256 154 175 564 70 432 240 246 76 225 74 58 237 280 109 . Hop 3 | . . . . . . . . . . . . . . . . . . . 3 . Pick Up 6 | . . . . 3 1 . 1 . . . 1 . . . . . . . . . Fast Attach 19 | . 1 . 2 1 . . 3 6 . . . . . . . 1 1 2 2 . Attach 13 | . . . . 7 1 . . . . . 1 . . . . . . . 4 . Detach 10 | . . . . 5 1 . . . . . . . . . . . 1 . 3 . Swap 5 | . . . . 1 . . . 3 . . . . . . . . . 1 . . Drop 19 | . 6 . . 3 2 . 2 1 . . 1 . . . . 1 . 1 2 . Fire 30 | . . . . 12 . . . 4 . . . 8 . . . . . 5 1 . Melee 23 | . . . . . . . . 10 . 5 3 . . . . . . 5 . . Ram 17 | . 2 10 . 4 . . . . . . . . . . . . . . 1 . Kick . | . . . . . . . . . . . . . . . . . . . . . Crush 5 | . . . . . . 1 1 2 . . . . . . . . 1 . . . Escape Stasis 15 | . . . . . . . . . . . . . . . . . . 15 . . Rewire . | . . . . . . . . . . . . . . . . . . . . . Trap . | . . . . . . . . . . . . . . . . . . . . . Miscellaneous . | . . . . . . . . . . . . . . . . . . . . . Route ------- -11/Scrapyard -10/Materials -10/Mines -9/Materials -9/Mines -9/Exiles -8/Mines -8/Materials (discovered 2 exits: *Fac / Sto) -7/Factory (discovered 2 exits: *Fac / *Low) -7/Waste -7/Factory (discovered 3 exits: *Fac / *Low x2) -7/Lower Caves -7/Lower Caves -7/Data Miner -6/Proximity Caves -6/Factory -6/Waste -6/Factory -6/Extension (discovered 2 exits: *Fac / *Cet) -6/Cetus (discovered 2 exits: *Fac / [*Arc]) -5/Factory History --------- Turn | Location | Event 1 | -11/Scrapyard | Discovered new exit (range 0) 1 | -11/Scrapyard | Entered Materials 69 | -10/Materials | Discovered new exit (range 6) 72 | -10/Materials | Entered Mines 80 | -10/Mines | Met a Derelict bent on vengeance 125 | -10/Mines | Discovered new exit (range 8) 128 | -10/Mines | Entered Materials 128 | -9/Materials | Evolved 2 slots: Propulsion x1, Utility x1 135 | -9/Materials | Identified exit to Mines 171 | -9/Materials | Entered Mines 185 | -9/Mines | Met a Derelict testing a Signal Generator 190 | -9/Mines | Found Signal Generator 209 | -9/Mines | Assembled infested the area 214 | -9/Mines | Assisted by a Guerilla fighting off Assembled 223 | -9/Mines | Found the Drone Emporium 223 | -9/Mines | Learned location of Zion (-6) 227 | -9/Mines | Found Prototype Device 296 | -9/Mines | Received a Rocket Launcher from a helpful Derelict 319 | -9/Mines | Build established: Mutant 395 | -9/Mines | Core integrity fell below 50% 492 | -9/Mines | Deemed a non-threat by the Exiles lab entrance 492 | -9/Mines | Discovered new exit (range 5) 494 | -9/Mines | Identified exit to Exiles 494 | -9/Mines | Entered Exiles 507 | -9/Exiles | Met 8R-AWN 515 | -9/Exiles | Met EX-HEX 535 | -9/Exiles | Met EX-DEC 545 | -9/Exiles | Met EX-BIN 552 | -9/Exiles | Aligned with FarCom system 553 | -9/Exiles | Given EX-Vault access code 564 | -9/Exiles | Opened EX-Vault 567 | -9/Exiles | Found Supersonic Drone Bay 597 | -9/Exiles | Identified Decoy Drone Bay 608 | -9/Exiles | Warned to stay clear of 0b10 Research branches 649 | -9/Exiles | Discovered new exit (range 10) 653 | -9/Exiles | Identified exit to Mines 653 | -9/Exiles | Left Exiles lab with Supersonic Drone Bay 653 | -9/Exiles | Entered Mines 733 | -8/Mines | Discovered new exit (range 6) 736 | -8/Mines | Identified exit to Materials 736 | -8/Mines | Entered Materials 736 | -8/Materials | Evolved 2 slots: Propulsion x1, Utility x1 737 | -8/Materials | Identified exit to Storage 831 | -8/Materials | Discovered new exit (range 6) 833 | -8/Materials | Identified exit to Factory 833 | -8/Materials | Entered Factory 833 | -7/Factory | Evolved 2 slots: Propulsion x1, Utility x1 1090 | -7/Factory | Discovered new exit (range 13) 1096 | -7/Factory | Identified exit to Lower Caves 1116 | -7/Factory | Discovered new exit (range 3) 1117 | -7/Factory | Identified exit to Factory 1171 | -7/Factory | Sucked down chute 1171 | -7/Factory | Entered Waste 1171 | -7/Waste | The area was eerily silent 1196 | -7/Waste | Discovered new exit (range 22) 1206 | -7/Waste | Identified exit to Factory 1207 | -7/Waste | Entered Factory 1376 | -7/Factory | Discovered exit to Lower Caves (range 7) 1408 | -7/Factory | Discovered exit to Factory (range 6) 1441 | -7/Factory | Entered Lower Caves 1441 | -7/Lower Caves | Accompanied by 1 ally 1446 | -7/Lower Caves | Acquired the password to a Derelict Tinkerer's latest research 1450 | -7/Lower Caves | Found Prototype Special Weapon 1491 | -7/Lower Caves | Spotted B-75 Beast 1565 | -7/Lower Caves | Discovered new exit (range 13) 1571 | -7/Lower Caves | Identified exit to Lower Caves 1572 | -7/Lower Caves | Ambushed by wild Derelicts 1572 | -7/Lower Caves | Entered another Lower Caves area 1611 | -7/Lower Caves | Encountered a Warlord checkpoint 1707 | -7/Lower Caves | Discovered new exit (range 10) 1711 | -7/Lower Caves | Identified exit to Data Miner 1712 | -7/Lower Caves | Entered Data Miner 1712 | -7/Data Miner | Discovered new exit (range 6) 1719 | -7/Data Miner | Met Data Miner 1731 | -7/Data Miner | Learned location of Section 7 (-2) 1731 | -7/Data Miner | Acquired the access code to Warlord's prototype stash 1739 | -7/Data Miner | Received God Mode back door access code from Data Miner 1750 | -7/Data Miner | Identified exit to Proximity Caves 1750 | -7/Data Miner | Entered Proximity Caves 1766 | -6/Proximity Caves | Learned Factory security intel 1828 | -6/Proximity Caves | Spotted B-75 Beast 1840 | -6/Proximity Caves | Discovered exit to Factory (range 6) 1863 | -6/Proximity Caves | Escorted by Enhanced Grunt 1957 | -6/Proximity Caves | Received a Behemoth hack from an annoying Tinkerer 1992 | -6/Proximity Caves | Entered Factory 1992 | -6/Factory | Accompanied by 1 ally 1992 | -6/Factory | Evolved 2 slots: Propulsion x1, Utility x1 2038 | -6/Factory | Sucked down chute 2038 | -6/Factory | Entered Waste 2039 | -6/Waste | Met a frightened Derelict 2043 | -6/Waste | Spotted C-40 Crusher 2043 | -6/Waste | Spotted C-40 Crusher 2048 | -6/Waste | Spotted C-40 Crusher 2050 | -6/Waste | 1 allies followed down the chute 2056 | -6/Waste | Spotted C-40 Crusher 2059 | -6/Waste | Discovered new exit (range 21) 2069 | -6/Waste | Identified exit to Factory 2070 | -6/Waste | Entered Factory 2106 | -6/Factory | Incoming investigation squad redirected 2134 | -6/Factory | Incoming investigation squad redirected 2177 | -6/Factory | Discovered new exit (range 6) 2192 | -6/Factory | Identified exit to Extension 2193 | -6/Factory | Entered Extension 2214 | -6/Extension | Rescued A7 2248 | -6/Extension | Rescued a captive Derelict 2250 | -6/Extension | Rescued a captive Derelict 2325 | -6/Extension | Spotted B-75 Beast 2332 | -6/Extension | Spotted B-75 Beast 2377 | -6/Extension | Discovered new exit (range 21) 2377 | -6/Extension | Discovered new exit (range 21) 2388 | -6/Extension | Identified exit to Cetus 2395 | -6/Extension | Entered Cetus 2400 | -6/Cetus | Spotted Cetus Guard 2404 | -6/Cetus | Lost 4 parts (4n) 2426 | -6/Cetus | Spotted Cetus Guard 2427 | -6/Cetus | Spotted Cetus Guard 2428 | -6/Cetus | Spotted Cetus Guard 2441 | -6/Cetus | Discovered new exit (range 22) 2461 | -6/Cetus | Spotted Cetus Guard 2461 | -6/Cetus | Spotted Cetus Guard 2461 | -6/Cetus | Spotted Cetus Guard 2461 | -6/Cetus | Spotted Cetus Guard 2462 | -6/Cetus | Discovered new exit (range 22) 2468 | -6/Cetus | Identified exit to Factory 2470 | -6/Cetus | Identified Molecular Deconstructor 2481 | -6/Cetus | Core integrity fell below 50% 2483 | -6/Cetus | Entered Factory 2483 | -5/Factory | Evolved 2 slots: Propulsion x1, Utility x1 2483 | -5/Factory | Self-destructed Last Messages --------------- 02474_ Slug penetrates Wall. 02475_ Penetrated by Slug. 02475_ Imp. Medium Treads destroyed. 02475_ Slug penetrates Wall. 02475_ W-25 Informer destroyed. 02475_ Mni. Grenade Launcher destroyed. 02475_ Destroyed Mni. Grenade Launcher. 02478_ Slug penetrates Wall. 02479_ Slammed into Cetus Guard. 02480_ Acquired Lgt. Deuterium Engine. 02480_ Penetrated by Slug. 02480_ Cetus Guard suffers critical hit. 02481_ Critical hit. 02481_ Lgt. Deuterium Engine destroyed. 02481_ Penetrated by Slug. 02481_ Slug penetrates Cetus Guard. PARAMETERS=PROPULSION_1,UTILITY_1 LOCATION=FACTORY GOAL=ESCAPE 02483_ Receiving FarCom transmissions... Map ----- +----------------------------------------------------+ | ?????????????????????????????????????????????????? | | ?????????????????????????????????????????????????? | | ?????????????????????????????????????????????????? | | ?????????????????????????????????????????????????? | | ?????????????????????????????????????????????????? | | ?????????????????????????????????????????????????? | | ????????????????????????????? "????????????????? | | ????????????????????????????? "????????????????? | | ?????????????????????????#### "????????????????? | | ????????????????????????? ?????????????????? | | ????????????????????????? ?????????????????? | | ????????????????????????? = ?????????????????? | | ????????????????????????? ??????????????????? | | ????????????????????????? ??????????????????? | | ????????????????????????# #??????????????????? | | ???????????????????##+### #??????????????????? | | ??????????????????? #??????????????????? | | ???????????????????? #??????????????????? | | ????????????????????? #??????????????????? | | ????????????????????? #??????????????????? | | ?????????????????????? #??????????????????? | | ??????????????????????# #??????????????????? | | ??????????????????????# #??????????o???????? | | ??????????????????????# #??????????????????? | | ??????????????????????# #??????????????????? | | ??????????????????????# @ #??????????????????? | | ??????????????????????# #??????????????????? | | ??????????????????????# #??????????????????? | | ??????????????????????####+####??????????????????? | | ?????????????????????????????????????????????????? | | ?????????????????????????????????????????????????? | | ?????????????????????????????????????????????????? | | ?????????????????????????????????????????????????? | | ?????????????????????????????????????????????????? | | ?????????????????????????????????????????????????? | | ?????????????????????????????????????????????????? | | ?????????????????????????????????????????????????? | | ?????????????????????????????????????????????????? | | ?????????????????????????????????????????????????? | | ?????????????????????????????????????????????????? | | ?????????????????????????????????????????????????? | | ?????????????????????????????????????????????????? | | ?????????????????????????????????????????????????? | | ?????????????????????????????????????????????????? | | ?????????????????????????????????????????????????? | | ?????????????????????????????????????????????????? | | | | | | | | | +----------------------------------------------------+ Best States ------------- Heat Dissipation 37 Energy Generation 10 Energy Capacity 125 Matter Stores 300 Matter Capacity 300 Sight Range 22 Terrain Scan Density 10 Armor Coverage 150 Evasion (%) 63 Recoil Reduction 1 Item Schematics ----------------- Combat Drone Bay | -7/Data Miner | Free Lgt. Regenerative Plating | -7/Data Miner | Free Exp. Flexi-carbon Leg | -7/Data Miner | Free Cmb. Gravmag System | -7/Data Miner | Free Exp. Cesium-ion Thruster | -7/Data Miner | Free Exp. Terrain Scan Processor | -7/Data Miner | Free Tactical Coordination Suite | -7/Data Miner | Free Cloaking Device | -7/Data Miner | Free Kinetic Spear | -7/Data Miner | Free Robot Schematics ------------------ S-27 Virus | -7/Data Miner | Free G-50 Soldier | -7/Data Miner | Free X-72 Disruptor | -7/Data Miner | Free G-67 Veteran | -7/Data Miner | Free H-66 Slayer | -7/Data Miner | Free I-36 Angel | -7/Data Miner | Free P-70 Sage | -7/Data Miner | Free Fabricated ------------ Nothing Alien Tech Used ----------------- None Achievements -------------- None Challenges ------------ None Game ------ Seed SurgeMetafiberModule Manual? 0 Play Time 00:36:40 Cumulative 766.6 hours Start 2020.10.31 @ 11:07:49 End 2020.10.31 @ 16:20:28 Sessions 5 Manual Loads 0 Difficulty Rogue Special Mode Halloween2020/ForbiddenLore Game No. 492 Rogue 492 Adventurer 0 Explorer 0 Win Type - Total 112 Types 76/7/8/10/5/1/4/0/1 Lore% 96 Gallery% 94 Achievement% 81 Wizard Run 0 Options --------- ASCII 0 Keyboard 0 Movement Numpad Keybinds 0 Fullscreen 2 Font 18/SmallcapsGlow Map View 76x50 Tactical HUD 1 Map Filters NONE Filters NONE Steam 1 RUN: 20a0a8b0-6e24-4dd9-9f6d-c2ba6a7349c6